bitfinex/quotes_SOLUSD_20250129
["timestamp","ask_amount","ask_price","bid_price","bid_amount"]
[1738178027237,33.76940877,226.07,225.98,0.66349277]
[1738178027427,33.76940877,226.07,225.99,0.25098]
[1738178027625,33.76940877,226.07,226.01,0.12549]
[1738178027830,33.76940877,226.11,226.03,0.50196]
[1738178028026,33.76940877,226.11,226.04,0.66335921]
[1738178028251,33.76940877,226.09,226.04,0.66335921]
[1738178028551,33.76940877,226.11,226.05,0.25098]
[1738178028740,0.8844,226.12,226.07,0.12549]
[1738178028942,0.8844,226.12,226.09,0.12549]
[1738178029139,33.76940877,226.11,226.09,0.66330451]
[1738178029342,33.76940877,226.11,226.04,0.66336734]
[1738178029659,33.76940877,226.05,226.02,0.6634317]
[1738178029860,33.76940877,226.05,225.99,0.25098]
[1738178030067,33.76940877,226.05,226.01,0.12549]
[1738178030357,0.663,226.11,225.99,0.12549]
[1738178030358,33.76940877,226.03,225.99,0.66351809]
[1738178030855,33.76940877,226.03,226.0,0.12549]
[1738178031157,33.76940877,226.01,225.99,0.66355483]
[1738178031357,33.76940877,226.03,225.97,0.12549]
[1738178031555,33.76940877,226.03,225.99,0.12549]
[1738178031765,33.76940877,226.01,226.0,0.66361478]
[1738178032057,33.76940877,226.01,225.96,0.6636274]
[1738178032256,33.76940877,225.97,225.94,0.66365162]
[1738178032449,0.8851,225.96,225.93,0.063]
[1738178032763,33.76940877,226.05,225.95,0.12549]
[1738178032951,33.76940877,226.05,225.97,0.12549]
[1738178033141,33.76940877,226.03,225.98,0.66358592]
[1738178033542,33.76940877,226.03,225.99,0.12549]
[1738178033843,33.76940877,226.01,225.97,0.66359924]
[1738178034047,33.76940877,225.99,225.93,0.72669276]
[1738178034245,33.76940877,225.97,225.93,0.72669276]
[1738178034445,0.8851,225.96,225.94,0.12549]
[1738178034759,0.8851,225.96,225.93,0.063]
[1738178034943,33.76940877,225.95,225.93,0.063]
[1738178035149,0.663,225.94,225.93,0.063]
[1738178035340,34.43240877,225.94,225.81,0.66392128]
[1738178035661,33.76940877,225.85,225.81,0.66392128]
[1738178035865,33.76940877,225.85,225.82,0.66411295]
[1738178036051,33.76940877,225.83,225.8,0.66415721]
[1738178036245,33.76940877,225.83,225.71,36.5752]
[1738178036246,33.76940877,225.84,225.77,33.76940877]
[1738178036452,0.8856,225.83,225.78,24.81746188]
[1738178036645,0.8856,225.83,225.78,0.91508788]
[1738178036852,33.76940877,225.82,225.78,0.91508788]
[1738178037159,2.2134,225.9,225.8,0.12549]
[1738178037160,0.8854,225.87,225.8,0.12549]
[1738178037339,0.8854,225.87,225.82,0.25098]
[1738178037536,33.76940877,225.86,225.84,0.25098]
[1738178037759,33.76940877,225.92,225.87,0.12549]
[1738178037946,33.76940877,225.92,225.89,0.25098]
[1738178038148,33.76940877,225.92,225.9,0.66387154]
[1738178038472,0.8853,225.91,225.85,0.66390516]
[1738178038645,33.76940877,225.86,225.8,24.153354]
[1738178038845,33.76940877,225.86,225.82,0.12549]
[1738178039068,33.76940877,225.86,225.84,0.12549]
[1738178039368,33.76940877,225.9,225.86,0.12549]
[1738178039670,33.76940877,225.9,225.87,0.66400268]
[1738178039870,0.8853,225.91,225.87,0.66400268]
[1738178040172,0.663,225.99,225.88,24.153354]
[1738178040173,33.76940877,225.94,225.88,24.153354]
[1738178040345,33.76940877,225.94,225.9,0.12549]
[1738178040662,34.65460877,225.94,225.92,0.12549]
[1738178040862,33.76940877,225.94,225.93,0.78927896]
[1738178041063,34.65450877,225.96,225.94,0.12549]
[1738178041265,34.65450877,225.96,225.88,33.76940877]
[1738178041266,1.0,226.09,225.96,0.12549]
[1738178041466,33.76940877,226.05,225.99,0.12549]
[1738178041770,3.0958,226.11,226.01,0.12549]
[1738178041771,32.76940877,226.07,226.01,0.12549]
[1738178041942,32.76940877,226.07,225.97,0.12549]
[1738178041943,0.663,226.06,225.94,0.6635092]
[1738178042138,0.663,226.06,225.92,0.66371546]
[1738178042361,33.76940877,225.94,225.92,0.66371546]
[1738178042562,33.76940877,225.94,225.87,0.66378739]
[1738178042774,33.76940877,226.04,225.93,24.278844]
[1738178042978,34.65390877,226.1,226.03,0.25098]
[1738178043275,34.65390877,226.1,226.06,0.12549]
[1738178043276,33.76940877,226.1,226.06,0.12549]
[1738178043462,33.76940877,226.1,226.07,0.66339787]
[1738178043642,2.874,226.15,226.08,0.66332433]
[1738178043643,33.76940877,226.15,226.08,0.66332433]
[1738178043844,33.76940877,226.11,226.08,0.66332433]
[1738178044152,33.79940877,226.16,226.04,58.04825277]
[1738178044153,33.79940877,226.13,226.04,58.04825277]
[1738178044353,34.68380877,226.13,226.07,24.278844]
[1738178044572,0.03,226.13,226.09,24.278844]
[1738178044782,0.03,226.13,226.1,0.66316675]
[1738178044943,0.03,226.13,226.12,34.27136877]
[1738178045144,0.03,226.13,226.12,88.71125517]
[1738178045463,0.03,226.16,226.15,44.278844]
[1738178045652,0.03,226.16,226.15,108.71112582]
[1738178045854,0.03,226.16,226.15,0.12549]
[1738178046179,34.68370877,226.16,226.11,0.66309669]
[1738178046377,33.76940877,226.14,226.11,0.66309669]
[1738178046553,33.76940877,226.14,226.08,0.50196]
[1738178046753,33.76940877,226.12,226.09,0.66323039]
[1738178046951,33.76940877,226.12,226.04,34.43275804]
[1738178047149,0.03,226.16,226.11,24.278844]
[1738178047463,0.03,226.16,226.15,58.04825277]
[1738178047869,0.03,226.16,226.12,0.6630399]
[1738178047870,0.03,226.16,226.13,33.76940877]
[1738178048045,33.76940877,226.15,226.14,0.66304142]
[1738178048247,33.76940877,226.15,226.08,0.66319735]
[1738178048476,33.76940877,226.15,226.03,0.063]
[1738178048477,33.76940877,226.09,226.04,0.66336171]
[1738178048775,34.65400877,226.09,226.04,0.66336171]
[1738178048975,33.76940877,226.07,226.04,0.66336171]
[1738178049168,33.79940877,226.16,226.04,0.66336171]
[1738178049169,33.76940877,226.11,226.05,24.027864]
[1738178049366,0.03,226.16,226.11,0.25098]
[1738178049571,0.03,226.16,226.12,34.43249329]
[1738178049743,0.03,226.16,226.13,24.027864]
[1738178049948,0.03,226.16,226.15,24.278844]
[1738178050173,0.03,226.16,226.15,0.12549]
[1738178050481,0.03,226.16,226.15,0.78859405]
[1738178050976,0.03,226.16,226.15,1.16506405]
[1738178051176,0.03,226.22,226.2,0.37647]
[1738178051383,0.03,226.22,226.18,0.50196]
[1738178051384,0.03,226.22,226.18,0.66279523]
[1738178051563,33.76940877,226.19,226.17,0.6630364]
[1738178051758,0.03,226.22,226.13,33.76940877]
[1738178051959,33.76940877,226.21,226.14,0.78849951]
[1738178052167,0.03,226.22,226.17,0.50196]
[1738178052345,0.03,226.22,226.21,34.02038877]
[1738178052549,0.03,226.22,226.21,58.71109076]
[1738178053049,0.03,226.23,226.22,28.699244]
[1738178053266,0.03,226.32,226.22,28.699244]
[1738178053470,0.03,226.32,226.27,30.0]
[1738178053670,0.03,226.32,226.31,33.89489877]
[1738178054382,0.8831,226.45,226.32,24.278844]
[1738178054577,33.76940877,226.37,226.34,0.12549]
[1738178054775,33.76940877,226.37,226.35,0.66254472]
[1738178055075,33.76940877,226.41,226.36,0.12549]
[1738178055279,0.8831,226.45,226.33,34.14587877]
[1738178055280,33.76940877,226.43,226.37,0.66243015]
[1738178055444,0.8831,226.45,226.27,40.13500877]
[1738178055445,33.76940877,226.39,226.34,0.66247284]
[1738178055859,33.76940877,226.39,226.35,0.12549]
[1738178056070,33.76940877,226.39,226.32,0.66244988]
[1738178056481,33.76940877,226.39,226.33,0.12549]
[1738178056656,3.091,226.45,226.34,0.6625483]
[1738178056657,33.76940877,226.37,226.34,0.6625483]
[1738178056856,33.76940877,226.35,226.3,0.66262849]
[1738178057258,3.092,226.38,226.32,24.278844]
[1738178057259,0.8834,226.38,226.32,24.278844]
[1738178057576,33.76940877,226.41,226.34,0.12549]
[1738178057778,0.03,226.46,226.45,24.278844]
[1738178057988,0.03,226.47,226.45,24.94081151]
[1738178058278,0.9131,226.47,226.45,0.66196751]
[1738178058452,0.9131,226.47,226.38,0.66232589]
[1738178058658,33.76940877,226.42,226.38,0.66232589]
[1738178058867,0.03,226.47,226.34,0.66244305]
[1738178058868,33.76940877,226.4,226.34,0.66244305]
[1738178059265,0.693,226.47,226.32,0.66255724]
[1738178059266,33.76940877,226.38,226.32,0.66255724]
[1738178059777,33.76940877,226.34,226.3,0.66261436]
[1738178059983,33.76940877,226.32,226.26,0.66271412]
[1738178060281,33.76940877,226.28,226.21,0.66271412]
[1738178060472,33.76940877,226.25,226.17,33.76940877]
[1738178060665,33.76940877,226.23,226.18,0.66302665]
[1738178060862,33.76940877,226.23,226.19,0.12549]
[1738178061173,33.76940877,226.27,226.21,0.12549]
[1738178061351,33.76940877,226.27,226.22,0.66291667]
[1738178061554,33.76940877,226.23,226.18,0.6629069]
[1738178061754,33.76940877,226.26,226.19,0.66305747]
[1738178061974,33.76940877,226.3,226.24,0.12549]
[1738178062175,34.65290877,226.38,226.3,0.12549]
[1738178062378,0.663,226.44,226.32,0.12549]
[1738178062589,0.03,226.47,226.36,0.12549]
[1738178062880,0.9131,226.47,226.38,0.12549]
[1738178063085,0.663,226.46,226.38,0.66240833]
[1738178063383,0.9131,226.47,226.34,24.278844]
[1738178063585,33.76940877,226.45,226.38,0.12549]
[1738178063762,0.9131,226.47,226.41,33.76940877]
[1738178063763,0.03,226.47,226.41,33.76940877]
[1738178064086,0.03,226.47,226.42,0.6623659]
[1738178064459,0.03,226.47,226.44,0.12549]
[1738178064663,0.03,226.47,226.45,34.43163095]
[1738178064968,0.03,226.47,226.45,38.84753095]
[1738178065169,0.03,226.47,226.46,24.153354]
[1738178065387,0.03,226.47,226.46,24.278844]
[1738178065563,0.03,226.47,226.46,24.153354]
[1738178065960,0.03,226.47,226.46,336.153354]
[1738178066162,0.03,226.47,226.46,312.0]
[1738178066462,0.03,226.47,226.46,24.278844]
[1738178066662,0.663,226.64,226.46,24.278844]
[1738178066663,0.8823,226.68,226.55,24.153354]
[1738178066857,0.03,226.69,226.64,33.76940877]
[1738178067084,0.03,226.69,226.65,0.66167863]
[1738178067260,33.76940877,226.68,226.63,0.66164748]
[1738178067464,33.76940877,226.68,226.59,33.76940877]
[1738178067687,33.76940877,226.68,226.61,33.76940877]
[1738178067993,0.9122,226.69,226.63,33.76940877]
[1738178068200,0.03,226.69,226.64,0.66167647]
[1738178068364,0.03,226.69,226.67,33.76940877]
[1738178068691,0.03,226.69,226.68,24.81493279]
[1738178068908,0.03,226.69,226.68,0.66157879]
[1738178069584,0.03,226.69,226.68,24.81493279]
[1738178069789,0.03,226.69,226.68,0.66157879]
[1738178070581,0.9122,226.69,226.62,0.66157914]
[1738178070791,33.76940877,226.66,226.62,0.66157914]
[1738178070975,33.76940877,226.66,226.6,0.66181116]
[1738178071301,33.76940877,226.64,226.58,0.66182179]
[1738178071598,3.7808,226.69,226.56,0.66188246]
[1738178071808,33.76940877,226.61,226.54,34.43124219]
[1738178071975,33.76940877,226.61,226.54,0.66183342]
[1738178072169,8.1921,226.69,226.5,33.76940877]
[1738178072170,33.76940877,226.59,226.5,33.76940877]
[1738178072372,33.76940877,226.57,226.51,0.66209255]
[1738178072683,0.8827,226.56,226.5,33.76940877]
[1738178072887,33.76940877,226.55,226.48,33.76940877]
[1738178073198,0.8827,226.56,226.49,0.66215344]
[1738178073501,0.8826,226.6,226.52,33.76940877]
[1738178073799,33.76940877,226.57,226.53,0.66203228]
[1738178073984,33.76940877,226.57,226.5,33.76940877]
[1738178073985,33.76940877,226.59,226.51,0.66209142]
[1738178074188,33.76940877,226.65,226.56,33.76940877]
[1738178074370,0.8824,226.64,226.57,0.66189248]
[1738178074998,0.8823,226.66,226.58,33.76940877]
[1738178075301,0.8823,226.66,226.5,0.66186345]
[1738178075302,33.76940877,226.59,226.5,0.66186345]
[1738178075466,1.663,226.65,226.5,0.66186345]
[1738178075467,33.76940877,226.56,226.5,0.66186345]
[1738178075668,33.76940877,226.58,226.51,33.76940877]
[1738178075869,33.76940877,226.6,226.52,0.66203709]
[1738178076070,34.65170877,226.66,226.57,33.76940877]
[1738178076269,34.65170877,226.68,226.61,33.76940877]
[1738178076499,34.18160877,226.7,226.62,0.66173699]
[1738178076674,33.76940877,226.68,226.62,0.66173699]
[1738178077067,34.65160877,226.7,226.62,0.66173699]
[1738178077375,0.03,226.71,226.62,0.66173699]
[1738178077574,0.03,226.71,226.57,0.12549]
[1738178077575,0.03,226.71,226.67,33.76940877]
[1738178077782,0.03,226.71,226.68,0.66152792]
[1738178078078,33.76940877,226.7,226.61,34.43096568]
[1738178078469,33.76940877,226.66,226.57,34.43112561]
[1738178078675,0.8824,226.65,226.57,34.43112561]
[1738178078896,0.8824,226.65,226.59,33.76940877]
[1738178079092,2.2354,226.71,226.59,33.76940877]
[1738178079093,0.8822,226.7,226.63,33.76940877]
[1738178079303,0.8822,226.7,226.65,33.76940877]
[1738178079613,0.9121,226.71,226.66,0.66160478]
[1738178080265,0.9121,226.71,226.7,0.37647]
[1738178080266,0.03,226.71,226.7,0.37647]
[1738178080469,0.03,226.71,226.7,0.66142245]
[1738178081200,0.03,226.71,226.7,24.94026645]
[1738178081405,0.03,226.71,226.7,58.58418522]
[1738178081575,0.03,226.71,226.7,24.81477645]
[1738178081771,0.03,226.71,226.7,24.43830645]
[1738178081974,0.03,226.71,226.7,59.20771522]
[1738178082307,0.03,226.82,226.75,0.50196]
[1738178082470,0.03,226.82,226.81,57.92276277]
[1738178082674,0.03,226.82,226.81,62.45715277]
[1738178082894,0.03,226.82,226.81,63.11812725]
[1738178083203,0.03,226.82,226.81,0.66097448]
[1738178083493,0.03,226.82,226.78,0.66122224]
[1738178083696,33.76940877,226.81,226.76,0.6612916]
[1738178083901,33.76940877,226.81,226.74,0.66135834]
[1738178084073,0.03,226.82,226.75,33.76940877]
[1738178084272,0.03,226.82,226.79,33.76940877]
[1738178084484,0.03,226.82,226.81,33.76940877]
[1738178084993,0.03,226.82,226.8,0.66115872]
[1738178085382,33.76940877,226.81,226.73,34.43067359]
[1738178086193,33.76940877,226.79,226.73,0.66126482]
[1738178086498,33.76940877,226.81,226.74,0.66138212]
[1738178086877,0.8818,226.8,226.74,0.66138212]
[1738178087275,33.76940877,226.79,226.69,33.76940877]
[1738178087499,33.76940877,226.79,226.7,0.66148778]
[1738178087907,33.76940877,226.79,226.71,33.76940877]
[1738178088081,33.76940877,226.79,226.72,0.66144849]
[1738178088595,0.8818,226.8,226.73,33.76940877]
[1738178088781,0.8818,226.8,226.74,0.66137227]
[1738178088985,33.76940877,226.77,226.69,33.76940877]
[1738178089185,33.76940877,226.77,226.7,0.66151706]
[1738178089700,33.76940877,226.75,226.68,0.66149109]
[1738178090197,34.43240877,226.79,226.71,33.76940877]
[1738178090398,33.76940877,226.77,226.7,0.66145926]
[1738178090907,33.76940877,226.75,226.7,0.66145926]
[1738178091207,0.8819,226.76,226.7,0.66145926]
[1738178091385,0.8819,226.78,226.71,33.76940877]
[1738178091583,0.8819,226.78,226.65,30.12549]
[1738178091584,0.8819,226.78,226.74,33.76940877]
[1738178091800,0.03,226.82,226.75,0.66137494]
[1738178092006,33.76940877,226.78,226.71,0.66135757]
[1738178092200,33.76940877,226.8,226.72,33.76940877]
[1738178092401,33.76940877,226.8,226.73,0.66135605]
[1738178092905,0.8818,226.79,226.73,0.66135605]
[1738178093609,0.8818,226.79,226.67,0.66141354]
[1738178093610,33.76940877,226.74,226.67,0.66141354]
[1738178094187,33.76940877,226.76,226.68,23.776884]
[1738178094389,33.76940877,226.78,226.71,33.76940877]
[1738178094588,33.76940877,226.78,226.72,0.66144189]
[1738178094983,34.65130877,226.78,226.72,0.66144189]
[1738178095705,33.76940877,226.76,226.72,0.66144189]
[1738178095914,33.76940877,226.76,226.69,0.66142332]
[1738178096420,33.76940877,226.72,226.68,0.66150931]
[1738178096617,33.76940877,226.72,226.56,47.648579]
[1738178096618,33.76940877,226.72,226.66,0.66162127]
[1738178096786,1.0,226.76,226.52,32.6316]
[1738178096787,33.76940877,226.7,226.64,0.66169667]
[1738178096990,33.76940877,226.66,226.59,0.66176611]
[1738178098117,0.8822,226.69,226.6,23.776884]
[1738178098300,0.8821,226.73,226.65,33.76940877]
[1738178098507,0.882,226.75,226.67,33.76940877]
[1738178098812,0.882,226.75,226.68,0.66152759]
[1738178099000,33.76940877,226.7,226.63,0.66156861]
[1738178099308,33.76940877,226.66,226.61,0.66177006]
[1738178099725,33.76940877,226.66,226.59,0.66178813]
[1738178100326,33.76940877,226.74,226.64,33.76940877]
[1738178100643,33.76940877,226.74,226.63,23.776884]
[1738178100644,33.76940877,226.65,226.63,0.66158798]
[1738178100800,0.663,226.64,226.54,0.66185867]
[1738178101005,33.76940877,226.58,226.52,0.66198828]
[1738178101418,33.76940877,226.58,226.5,30.66208548]
[1738178101725,33.76940877,226.56,226.5,30.66208548]
[1738178101934,33.76940877,226.58,226.5,0.66208548]
[1738178102227,33.76940877,226.56,226.5,0.66208548]
[1738178102532,33.76940877,226.56,226.49,0.72516316]
[1738178103127,0.8828,226.55,226.49,0.72516316]
[1738178103327,33.76940877,226.52,226.49,0.063]
[1738178103531,33.76940877,226.5,226.49,0.063]
[1738178104607,33.76940877,226.52,226.49,0.063]
[1738178104834,33.76940877,226.5,226.49,0.063]
[1738178105134,34.65240877,226.5,226.49,0.063]
[1738178106032,0.883,226.5,226.49,0.063]
[1738178106328,34.65240877,226.5,226.49,0.063]
[1738178107040,34.65240877,226.5,226.45,0.063]
[1738178107041,1.0,226.49,226.48,0.0001]
[1738178107329,0.12549,226.48,226.45,0.0001]
[1738178107531,0.883,226.5,226.45,0.0001]
[1738178107914,34.65230877,226.52,226.46,0.66230919]
[1738178108130,34.65230877,226.52,226.45,0.0001]
[1738178108336,33.76940877,226.46,226.45,0.0001]
[1738178108538,33.76940877,226.48,226.45,0.0001]
[1738178109025,34.65230877,226.52,226.45,0.0001]
[1738178109418,0.8829,226.52,226.45,33.76950877]
[1738178109621,34.65230877,226.52,226.46,0.66220875]
[1738178110124,33.76940877,226.56,226.47,33.76940877]
[1738178110327,33.76940877,226.56,226.48,0.66215249]
[1738178110521,34.65200877,226.58,226.48,0.66215249]
[1738178110713,34.65200877,226.6,226.53,33.76940877]
[1738178110916,33.76940877,226.58,226.49,0.66198251]
[1738178111138,33.76940877,226.54,226.49,0.66198251]
[1738178111309,34.65210877,226.56,226.49,0.66198251]
[1738178111512,34.65210877,226.58,226.5,33.76940877]
[1738178111731,33.76940877,226.6,226.51,0.66205609]
[1738178111933,33.76940877,226.62,226.54,33.76940877]
[1738178112227,33.76940877,226.62,226.55,0.66198052]
[1738178112940,0.8824,226.63,226.55,0.66198052]
[1738178112941,33.76940877,226.6,226.55,0.66198052]
[1738178113105,0.8826,226.59,226.56,0.66195273]
[1738178113307,1.663,226.68,226.54,33.76940877]
[1738178113308,33.76940877,226.62,226.54,33.76940877]
[1738178113547,33.76940877,226.62,226.55,0.66191254]
[1738178113911,0.8825,226.63,226.55,0.66191254]
[1738178113912,33.76940877,226.6,226.55,0.66191254]
[1738178114111,33.76940877,226.58,226.53,0.66203116]
[1738178114328,33.76940877,226.56,226.51,0.66206659]
[1738178114540,33.76940877,226.58,226.5,33.76940877]
[1738178114852,33.76940877,226.6,226.52,33.76940877]
[1738178115052,33.76940877,226.56,226.52,0.66197095]
[1738178115220,33.76940877,226.56,226.49,0.662141]
[1738178115752,1.663,226.63,226.52,33.76940877]
[1738178115753,33.76940877,226.6,226.52,33.76940877]
[1738178115924,33.76940877,226.58,226.53,0.66203184]
[1738178116249,33.76940877,226.56,226.51,0.66201959]
[1738178116428,33.76940877,226.54,226.48,0.66201959]
[1738178116616,34.76940877,226.6,226.45,0.0001]
[1738178116617,33.76940877,226.5,226.45,0.0001]
[1738178117039,33.76940877,226.52,226.45,0.0001]
[1738178117246,34.43240877,226.6,226.5,33.76940877]
[1738178117459,34.43240877,226.6,226.26,0.063]
[1738178117460,1.0,226.37,226.26,0.063]
[1738178117618,33.76940877,226.27,226.26,0.063]
[1738178119141,34.65320877,226.27,226.26,0.0001]
[1738178119452,68.42261754,226.27,226.26,0.0001]
[1738178119822,68.54810754,226.27,226.26,0.0001]
[1738178120025,68.42261754,226.27,226.26,0.0001]
[1738178120245,34.65320877,226.27,226.26,0.0001]
[1738178120416,68.42261754,226.27,226.26,0.0001]
[1738178120922,34.65320877,226.27,226.26,0.0001]
[1738178122048,70.37701316,226.27,226.26,0.0001]
[1738178122657,69.25152316,226.27,226.26,0.0001]
[1738178123149,34.65320877,226.27,226.26,0.0001]
[1738178124020,68.42261754,226.27,226.26,0.0001]
[1738178124217,34.65320877,226.27,226.26,0.0001]
[1738178124420,33.76940877,226.27,226.26,0.0001]
[1738178125741,67.53881754,226.27,226.26,0.0001]
[1738178126051,68.74407993,226.27,226.26,0.0001]
[1738178126254,20.0,226.24,226.12,0.33240893]
[1738178126550,33.76940877,226.15,226.11,0.33295321]
[1738178126726,33.76940877,226.17,226.11,0.33295321]
[1738178126927,33.76940877,226.19,226.11,34.10236198]
[1738178127345,33.76940877,226.17,226.11,4.75545321]
[1738178128122,33.76940877,226.15,226.11,0.33295321]
[1738178128343,33.76940877,226.13,226.1,0.33303529]
[1738178128548,33.76940877,226.13,226.06,0.33311268]
[1738178128758,33.76940877,226.11,226.06,0.33311268]
[1738178129552,33.76940877,226.16,226.06,0.33324534]
[1738178129553,33.76940877,226.07,226.06,0.33324534]
[1738178129748,33.76940877,226.09,226.03,0.39649459]
[1738178130237,33.76940877,226.05,226.03,0.063]
[1738178131748,0.82946027,226.04,226.03,0.063]
[1738178133029,33.76940877,225.92,225.89,0.33408189]
[1738178133230,33.76940877,225.92,225.87,0.33468703]
[1738178134358,4.04210554,226.02,225.87,38.5312958]
[1738178134359,33.76940877,225.95,225.87,38.5312958]
[1738178134562,0.82990554,226.02,225.87,0.33468703]
[1738178134563,33.76940877,225.93,225.87,0.33468703]
[1738178135058,33.76940877,225.93,225.87,4.76188703]
[1738178135674,33.76940877,225.88,225.8,0.063]
[1738178135953,33.76940877,225.81,225.8,0.063]
[1738178136358,0.83033473,225.92,225.8,0.063]
[1738178136524,0.83001609,225.98,225.83,0.25098]
[1738178136725,0.8847,226.06,225.89,24.027864]
[1738178136975,0.82972678,226.05,225.93,0.12549]
[1738178137281,0.82955847,226.04,225.94,0.3339642]
[1738178137461,33.76940877,225.96,225.94,0.3339642]
[1738178137663,33.76940877,225.98,225.94,0.3339642]
[1738178137887,33.76940877,226.0,225.95,24.027864]
[1738178138191,33.76940877,226.05,225.98,33.76940877]
[1738178138349,33.76940877,225.99,225.98,0.33369546]
[1738178138549,33.76940877,225.99,225.91,0.33413664]
[1738178138772,33.76940877,225.92,225.89,0.33449203]
[1738178139163,33.76940877,225.94,225.89,0.33449203]
[1738178139473,33.76940877,225.94,225.89,4.76129203]
[1738178139675,33.76940877,225.94,225.89,0.33449203]
[1738178139884,33.76940877,225.94,225.9,0.33445421]
[1738178140182,33.76940877,225.92,225.88,0.33445388]
[1738178140351,33.76940877,225.89,225.85,0.33478833]
[1738178140551,33.76940877,225.86,225.81,0.33498413]
[1738178141046,33.76940877,225.88,225.81,0.33498413]
[1738178141246,33.76940877,225.86,225.81,0.33498413]
[1738178141459,33.76940877,225.84,225.81,0.33498413]
[1738178141782,33.76940877,225.88,225.81,0.33498413]
[1738178141953,33.76940877,225.84,225.81,0.063]
[1738178142484,33.76940877,225.86,225.82,0.33530954]
[1738178143282,3.0983,225.92,225.82,0.33530954]
[1738178143283,33.76940877,225.88,225.82,0.33530954]
[1738178143483,1.71535403,225.92,225.84,33.76940877]
[1738178143484,33.76940877,225.92,225.84,33.76940877]
[1738178143787,33.76940877,225.9,225.85,0.33471042]
[1738178145983,33.76940877,225.96,225.87,4.76174508]
[1738178146474,33.76940877,225.94,225.87,4.76174508]
[1738178148604,33.76940877,225.96,225.88,33.76940877]
[1738178148802,33.76940877,225.96,225.89,0.33451964]
[1738178149377,33.76940877,225.98,225.89,0.33451964]
[1738178149802,33.76940877,225.96,225.89,0.33451964]
[1738178150102,33.76940877,225.9,225.88,0.33456881]
[1738178150290,33.76940877,225.9,225.84,0.33475889]
[1738178150490,33.76940877,225.94,225.86,33.76940877]
[1738178150680,34.65450877,225.94,225.87,0.33462408]
[1738178150878,33.76940877,225.92,225.87,0.33462408]
[1738178151109,33.76940877,225.88,225.81,0.063]
[1738178151400,33.76940877,225.88,225.82,0.33507813]
[1738178152191,33.76940877,225.84,225.81,0.063]
[1738178152509,33.76940877,225.82,225.81,0.39823735]
[1738178152677,34.65500877,225.82,225.81,0.063]
[1738178153079,1.71607058,225.82,225.81,0.063]
[1738178153302,34.65500877,225.83,225.81,0.063]
[1738178153493,25.902374,225.81,225.8,0.063]
[1738178153681,33.76940877,225.75,225.7,0.063]
[1738178153879,33.76940877,225.71,225.7,0.063]
[1738178154803,34.65540877,225.71,225.7,0.063]
[1738178155579,36.48635181,225.71,225.59,0.39946453]
[1738178155791,33.76940877,225.6,225.59,0.063]
[1738178156480,34.60065779,225.6,225.59,0.063]
[1738178156917,35.48715779,225.6,225.59,0.063]
[1738178157273,35.48715779,225.6,225.58,0.063]
[1738178158213,34.65590877,225.6,225.58,0.063]
[1738178158411,33.76940877,225.62,225.58,0.063]
[1738178158599,1.0,225.74,225.58,0.063]
[1738178158600,33.76940877,225.66,225.58,0.063]
[1738178158808,33.76940877,225.66,225.59,0.33678759]
[1738178158980,33.76940877,225.68,225.59,34.10619636]
[1738178159176,33.76940877,225.68,225.59,0.33678759]
[1738178159177,33.76940877,225.66,225.59,0.33678759]
[1738178159380,33.76940877,225.64,225.59,0.33678759]
[1738178159587,33.76940877,225.62,225.59,0.33678759]
[1738178159787,33.76940877,225.64,225.58,0.063]
[1738178160005,33.76940877,225.66,225.59,0.33677423]
[1738178160209,33.76940877,225.6,225.58,0.063]
[1738178160592,33.76940877,225.63,225.58,0.063]
[1738178160993,33.76940877,225.59,225.58,0.063]
[1738178161399,34.60081779,225.59,225.54,0.063]
[1738178161596,33.76940877,225.55,225.54,0.063]
[1738178162521,33.76940877,225.57,225.54,0.063]
[1738178162907,33.76940877,225.57,225.54,0.40019029]
[1738178163109,33.76940877,225.59,225.54,0.40019029]
[1738178163419,33.76940877,225.65,225.55,33.76940877]
[1738178163623,33.76940877,225.56,225.54,0.063]
[1738178163924,0.83142446,225.55,225.54,0.063]
[1738178164906,0.8867,225.55,225.54,0.063]
[1738178165107,1.71808289,225.55,225.54,0.063]
[1738178165307,33.76940877,225.56,225.54,0.063]
[1738178165514,33.76940877,225.58,225.54,0.063]
[1738178165697,34.65600877,225.58,225.54,0.063]
[1738178165893,33.76940877,225.56,225.46,0.0001]
[1738178166105,33.76940877,225.48,225.46,0.0001]
[1738178167120,0.887,225.47,225.46,0.0001]